Cogmind - Beta 13 @@@ ROGUE MODE // 2024.05.11 @ 08:40:46 Player: OurFastestFox Result: Destroyed by Y-54 Guardian with Flak Gun Performance ------------- Evolutions (3) 1500 Regions Visited (5) 1000 Robots Destroyed (24) 120 Value Destroyed (810) 810 Prototype IDs (1) 20 Alien Tech Used (0) 0 Bonus (-27) -27 TOTAL SCORE: 3423 Bonus ------- Friendly Fire -27 Cogmind --------- Core Integrity 0/700 Matter 300/300 Energy 100/100 System Corruption 5% Temperature Cool (18) Movement Core (50) Location -7/Factory Parts ------- > --- POWER (2) -------- (None) > --- PROPULSION (3) --- (None) > --- UTILITY (5) ------ Visual Processing Unit Improved Signal Interpreter Improved Terrain Scan Processor Core Analyzer > --- WEAPON (3) ------- (None) > --- INVENTORY (5) ---- (None) Peak State ------------ > --- POWER ------------ Improved Deuterium Engine Micro Nuclear Core > --- PROPULSION ------- Aluminum Leg Carbon-fiber Leg Carbon-fiber Leg > --- UTILITY ---------- Visual Processing Unit Improved Signal Interpreter Core Analyzer Weapon Cycler Cloaking Device > --- WEAPON ----------- Improved EM Pulse Cannon Improved EM Pulse Cannon Plasma Cannon > --- INVENTORY -------- Aluminum Leg Spread Laser Plasma Cannon Gauss Cannon Advanced EMP Blaster [Rating: 46] Favorites ----------- Power Ion Engine Engine Ion Engine Power Core Micro Nuclear Core Propulsion Aluminum Leg Treads Light Treads Leg Aluminum Leg Hover Unit Improved Hover Unit Flight Unit VTOL Module Utility Visual Processing Unit Device Weight Redist. System Storage Small Storage Unit Processor Visual Processing Unit Weapon Heavy Assault Rifle Energy Gun Spread Laser Energy Cannon Improved EM Pulse Cannon Ballistic Gun Heavy Assault Rifle Ballistic Cannon Gauss Cannon Launcher Advanced EMP Blaster Build | -11 -10 -9 -9 -8 -7 ------- Run | Yrd Mat Mat Min Mat Fac Slots Evolved 6 | . . 2 . 2 2 Power 1 | . . . . 1 . Propulsion 1 | . . 1 . . . Utility 3 | . . 1 . 1 1 Weapon 1 | . . . . . 1 Parts Attached 49 | 6 1 6 1 12 23 Power 5 | 1 . . . 1 3 Engine 3 | 1 . . . 1 1 Core 2 | . . . . . 2 Reactor . | . . . . . . Propulsion 16 | 2 . 1 1 6 6 Treads 1 | . . . . 1 . Leg 9 | 2 . . . 2 5 Wheel . | . . . . . . Hover 3 | . . . . 2 1 Flight 3 | . . 1 1 1 . Utility 10 | 1 1 3 . 1 4 Device 4 | . 1 1 . . 2 Storage 2 | 1 . 1 . . . Processor 4 | . . 1 . 1 2 Hackware . | . . . . . . Protection . | . . . . . . Artifact . | . . . . . . Weapon 18 | 2 . 2 . 4 10 Energy Gun 2 | . . 1 . . 1 Energy Cannon 6 | . . . . 2 4 Ballistic Gun 3 | 2 . 1 . . . Ballistic Cannon 3 | . . . . . 3 Launcher 4 | . . . . 2 2 Special Weapon . | . . . . . . Impact Weapon . | . . . . . . Slashing Weapon . | . . . . . . Piercing Weapon . | . . . . . . Special Melee Weapon . | . . . . . . Unidentified Prototypes 1 | . . . . 1 . Parts Lost 23 | . . . . 8 15 Power 5 | . . . . 2 3 Propulsion 9 | . . . . 4 5 Utility 1 | . . . . 1 . Weapon 8 | . . . . 1 7 Highest Loss Streak 9 | . . . . 7 9 To Critical Strikes . | . . . . . . Average Slot Usage (%) 83 | . 88 81 100 84 72 Engine 9 | . 14 11 11 14 2 Core 1 | . . . . . 5 Leg 17 | . 28 22 22 10 13 Hover 1 | . . . . 5 . Flight 3 | . . 5 11 2 . Device 13 | . 3 13 22 16 8 Storage 2 | . 14 5 . . . Processor 12 | . . 2 11 13 22 Energy Gun 3 | . . 5 11 1 1 Energy Cannon 4 | . . . . 3 13 Ballistic Gun 9 | . 28 16 11 7 . Launcher 1 | . . . . 3 1 Naked Turns . | . . . . . . Heaviest Build 39 | 14 15 20 12 21 39 Greatest Support 46 | 20 20 26 26 26 46 Greatest Overweight (x) 5 | . . . . 1 5 Average Overweight (x) . | . . . . . . Largest Inventory Capacity 10 | 8 8 10 5 5 5 Average Capacity 5 | 6 8 6 5 5 5 Most Carried 6 | 4 4 6 5 5 5 Average Carried 4 | 2 3 4 4 4 3 Final Capacity 8 | 8 8 5 5 5 5 Final Carried 5 | 3 4 5 5 5 . Class Distribution -------------------- 69% | Mutant 12% | Scavenger-Gunner 7% | Scavenger-Scout 5% | Gunner 3% | Skirmisher Dominant Class ---------------- Mutant | -10/Materials Mutant | -9/Materials Mutant | -9/Mines Mutant | -8/Materials Scavenger-Gunner | -7/Factory Resources | -11 -10 -9 -9 -8 -7 ----------- Run | Yrd Mat Mat Min Mat Fac Matter Collected 894 | 216 125 65 45 171 272 Remotely . | . . . . . . Salvage Created 888 | . 136 66 . 264 422 Parts 42 | . 9 5 . 14 14 Haulers Intercepted . | . . . . . . Recyclers Shooed . | . . . . . . Parts Field Recycled . | . . . . . . Retrieved Matter . | . . . . . . Parts Self-Destructed . | . . . . . . Prevented . | . . . . . . Kills | -11 -10 -9 -9 -8 -7 ------- Run | Yrd Mat Mat Min Mat Fac Combat Hostiles Destroyed 19 | . 3 1 . 7 8 Guns 8 | . 3 1 . 2 2 Cannons 7 | . . . . 1 6 AOE 4 | . . . . 4 . Classes Destroyed 10 | . 2 1 . 3 4 Worker 1 | . . . . 1 . Builder 1 | . . . . 1 . Recycler 1 | . . . . . 1 Watcher 2 | . 1 1 . . . Swarmer 4 | . . . . 4 . Grunt 10 | . 3 . . 2 5 Duelist 1 | . . . . . 1 Sentry 2 | . . 1 . 1 . Hunter 1 | . . . . . 1 Programmer 1 | . . . . . 1 Best Kill Streak 3 | . 3 1 . 3 3 Combat Bots Only 3 | . 3 1 . 3 3 Max Kills in Single Turn 3 | . 2 1 . 3 1 Gunslinging . | . . . . . . Exploded 3 | . . . . 3 . Melee . | . . . . . . Uniques/NPCs Destroyed . | . . . . . . Combat | -11 -10 -9 -9 -8 -7 -------- Run | Yrd Mat Mat Min Mat Fac Hostile Shots Fired 389 | . 33 6 8 128 214 Missed 131 | . 10 2 7 44 68 Damage Taken 3225 | . 248 59 15 876 2027 Core 916 | . 42 14 . 158 702 Absorbed by Shields . | . . . . . . Core Remaining (%) 87 | 100 83 . 96 71 . Volleys Fired 73 | . 13 8 . 30 22 Largest 3 | . 2 2 . 2 3 Hottest 218 | . 40 88 . 103 218 Shots Fired 122 | . 26 16 . 40 40 Gun 80 | . 26 16 . 27 11 Cannon 37 | . . . . 8 29 Launcher 5 | . . . . 5 . Special . | . . . . . . Kinetic 75 | . 26 11 . 27 11 Thermal 28 | . . 5 . 5 18 Explosive . | . . . . . . Electromagnetic 19 | . . . . 8 11 Robot Hit Streak 11 | . 5 3 . 10 11 Robot Miss Streak 8 | . 1 8 . 6 7 Penetration Max . | . . . . . . Secondary Targets . | . . . . . . Shots Hit Robots 80 | . 18 6 . 28 28 Core Hits 65 | . 7 6 . 11 41 Critical Kills . | . . . . . . Critical Parts Destroyed . | . . . . . . Critical Strikes . | . . . . . . Melee Attacks . | . . . . . . Impact . | . . . . . . Slashing . | . . . . . . Piercing . | . . . . . . Sneak Attacks . | . . . . . . Combat Hostiles . | . . . . . . Follow-up Attacks . | . . . . . . Damage Inflicted 1691 | . 265 69 . 733 624 Guns 732 | . 265 69 . 258 140 Cannons 668 | . . . . 196 472 Explosions 279 | . . . . 279 . Melee . | . . . . . . Ramming 12 | . . . . . 12 Kinetic 795 | . 265 50 . 258 222 Thermal 480 | . . 19 . 273 188 Explosive . | . . . . . . Electromagnetic 404 | . . . . 202 202 Impact . | . . . . . . Slashing . | . . . . . . Piercing . | . . . . . . Highest Corruption 5 | . . . . . 5 Average Corruption 4 | . . . . . 4 Corruption Purged . | . . . . . . Corruption Blocked . | . . . . . . Effects 6 | . . . . . 6 Matter Fused 2 | . . . . . 2 Energy Discharges 1 | . . . . . 1 Parts Rejected 2 | . . . . . 2 Data Loss (major) 1 | . . . . . 1 Overload Shots . | . . . . . . Overflow Damage 3 | . . . . 3 . Projectiles 3 | . . . . 3 . Explosions . | . . . . . . Melee . | . . . . . . Knockbacks . | . . . . . . Impact . | . . . . . . Kinetic . | . . . . . . Secondary . | . . . . . . Self-Inflicted Damage 81 | . . . . 57 24 Shots 5 | . . . . 4 1 Rammed 5 | . . . . . 5 Targets Rammed 5 | . . . . . 5 Kicked . | . . . . . . Crushed . | . . . . . . Highest Temperature 505 | . 11 36 . 142 505 Average Temperature 112 | . 5 18 . 44 169 Received Heat Transfer 990 | . 138 36 9 171 636 Effects 2 | . . . . . 2 Shutdowns 2 | . . . . . 2 Siege Activations . | . . . . . . Robots Corrupted . | . . . . . . Combat Hostiles . | . . . . . . Parts Fried 1 | . . . . . 1 Impact Corruptions . | . . . . . . Robots Melted . | . . . . . . Combat Hostiles . | . . . . . . Parts Melted 1 | . . . . . 1 Heat Transferred 640 | . . 25 . 350 265 Parts Sabotaged . | . . . . . . Parts Stolen . | . . . . . . Parts Stripped . | . . . . . . Power Chain Reactions 1 | . . . . 1 . Alert | -11 -10 -9 -9 -8 -7 ------- Run | Yrd Mat Mat Min Mat Fac Peak Influence 228 | . 77 119 106 228 164 Initial 46 | . . 32 46 40 30 Average 72 | . 42 66 56 118 63 Maximum Alert Level 1 | . . . . 1 . Low Security (%) 96 | 100 100 100 100 85 100 Level 1 3 | . . . . 14 . Level 2 . | . . . . . . Level 3 . | . . . . . . Level 4 . | . . . . . . Level 5 . | . . . . . . High Security . | . . . . . . Max Security . | . . . . . . Squads Dispatched 15 | . 1 . 1 8 5 Investigation 7 | . 1 . 1 3 2 Extermination 1 | . . . . . 1 Reinforcement 6 | . . . . 4 2 Assault . | . . . . . . Garrison 1 | . . . . 1 . Intercept . | . . . . . . Searches Triggered . | . . . . . . Construction Impeded . | . . . . . . Haulers Reinforced . | . . . . . . Active Scanning Responses . | . . . . . . Cargo Convoy Interrupts . | . . . . . . Stealth | -11 -10 -9 -9 -8 -7 --------- Run | Yrd Mat Mat Min Mat Fac Distress Signals 4 | . . . . 3 1 Communications Jammed . | . . . . . . Distress Signals . | . . . . . . Times Spotted 53 | . 6 3 2 20 22 Peak Tracking Total 7 | . 4 2 2 7 7 Tactical Retreats 4 | . . . 1 2 1 Traps | -11 -10 -9 -9 -8 -7 ------- Run | Yrd Mat Mat Min Mat Fac Traps Triggered 3 | . 1 . . 1 1 Indirectly 1 | . . . . 1 . Trap Hack Attempts . | . . . . . . Triggered . | . . . . . . Disarmed . | . . . . . . Reprogrammed . | . . . . . . Reused . | . . . . . . Traps Extracted . | . . . . . . Installed . | . . . . . . Triggered . | . . . . . . Machines | -11 -10 -9 -9 -8 -7 ---------- Run | Yrd Mat Mat Min Mat Fac Machines Disabled 4 | . . . . 1 3 Max in Single Turn 2 | . . . . 1 2 Machines Repaired . | . . . . . . Machines Dismantled . | . . . . . . Machines Sabotaged . | . . . . . . Overloaded Fab Kills . | . . . . . . Hacking | -11 -10 -9 -9 -8 -7 --------- Run | Yrd Mat Mat Min Mat Fac Machines Accessed 11 | . . 4 1 3 3 Terminals 5 | . . 3 . 1 1 Fabricators 1 | . . . . . 1 Repair Stations 1 | . . . . 1 . Recycling Units 2 | . . 1 . . 1 Scanalyzers 1 | . . . . 1 . Garrison Access . | . . . . . . Total Hacks 25 | . . 12 1 6 6 Successful 13 | . . 7 1 3 2 Failed 12 | . . 5 . 3 4 Catastrophic 3 | . . 1 . . 2 Database Lockouts . | . . . . . . Manual . | . . . . . . Terminals 14 | . . 10 . 2 2 Fabricators 1 | . . . . . 1 Repair Stations 2 | . . . . 2 . Recycling Units 5 | . . 2 . . 3 Scanalyzers 2 | . . . . 2 . Garrison Access . | . . . . . . Terminal Hacks 7 | . . 5 1 1 . Record 1 | . . 1 . . . Open Door 1 | . . . 1 . . Emergency Access Points 1 | . . 1 . . . Alert Level 1 | . . 1 . . . Locate Traps 1 | . . 1 . . . Transport Status 1 | . . 1 . . . Reinforcement Status 1 | . . . . 1 . Fabricator Hacks 1 | . . . . . 1 Build 1 | . . . . . 1 Repair Station Hacks . | . . . . . . Recycling Unit Hacks 3 | . . 2 . . 1 Report Inventory 2 | . . 1 . . 1 Retrieve Components 1 | . . 1 . . . Scanalyzer 2 | . . . . 2 . Insert Component 1 | . . . . 1 . Analyze 1 | . . . . 1 . Garrison Access Hacks . | . . . . . . Unauthorized Hacks . | . . . . . . Terminals . | . . . . . . Fabricators . | . . . . . . Repair Stations . | . . . . . . Recycling Units . | . . . . . . Scanalyzers . | . . . . . . Garrison Access . | . . . . . . Data Cores Recovered . | . . . . . . Used . | . . . . . . Hacking Detections 9 | . . 4 . 2 3 Full Trace Events 2 | . . . . . 2 Feedback Events . | . . . . . . Feedback Blocked . | . . . . . . Robot Schematics Acquired . | . . . . . . Robots Built . | . . . . . . Authchips . | . . . . . . Time . | . . . . . . Total Robot Build Rating . | . . . . . . Part Schematics Acquired 1 | . . . . 1 . Parts Built 1 | . . . . . 1 Authchips . | . . . . . . Time 47 | . . . . . 47 Total Part Build Rating 5 | . . . . . 5 Parts Repaired . | . . . . . . Time . | . . . . . . Parts Recycled . | . . . . . . Recycled Matter . | . . . . . . Retrieved Matter . | . . . . . . Retrieved Components 3 | . . 3 . . . Parts Scanalyzed 1 | . . . . 1 . Part Schematics Acquired 1 | . . . . 1 . Parts Damaged . | . . . . . . Bothacking | -11 -10 -9 -9 -8 -7 ------------ Run | Yrd Mat Mat Min Mat Fac Used RIF Installer . | . . . . . . Robots Hacked . | . . . . . . Non-combat . | . . . . . . Combat . | . . . . . . Robot Hacks Applied . | . . . . . . Relay Couplers Released . | . . . . . . Fabnet Peak Effective % . | . . . . . . Robots Rewired . | . . . . . . Allies Hacked . | . . . . . . Hacks Repelled . | . . . . . . Allies | -11 -10 -9 -9 -8 -7 -------- Run | Yrd Mat Mat Min Mat Fac Total Allies . | . . . . . . Largest Group . | . . . . . . Highest-Rated Group . | . . . . . . Highest-Rated Ally . | . . . . . . Total Orders . | . . . . . . Ally Attacks . | . . . . . . Total Damage . | . . . . . . Kills . | . . . . . . Allies Corrupted . | . . . . . . Allies Melted . | . . . . . . Intel | -11 -10 -9 -9 -8 -7 ------- Run | Yrd Mat Mat Min Mat Fac Robot Analysis Total . | . . . . . . Derelict Logs Recovered . | . . . . . . Drone Launches . | . . . . . . Drone Recoveries . | . . . . . . Exploration | -11 -10 -9 -9 -8 -7 ------------- Run | Yrd Mat Mat Min Mat Fac Turns Passed 1826 | 65 174 290 304 471 522 Spaces Moved 1407 | 47 111 209 359 355 326 Core 95 | 8 . . . 53 34 Treads . | . . . . . . Legs 927 | 39 111 209 138 159 271 Wheels . | . . . . . . Hover 109 | . . . . 88 21 Flight 276 | . . . 221 55 . Fastest Speed 50 | 50 120 120 60 50 50 Average Speed 103 | 108 120 120 83 95 116 Slowest Speed 300 | 120 120 120 120 190 300 Overloaded Moves . | . . . . . . Propulsion Burnouts . | . . . . . . Robots Hopped . | . . . . . . Cave-ins Triggered . | . . . . . . Exploration Rate (%) 30 | 4 15 25 85 42 9 Regions Visited 5 Branch Regions 1 Pre-discovered Areas . | . . . . . . Known Exits Taken 1 | . . . . 1 . Unknown Exits Taken 4 | 1 1 1 1 . . Scrap Searched 1 | . . . 1 . . Spaces Dug . | . . . . . . Terrain Destroyed 2 | . . . . 2 . Melee . | . . . . . . Projectile . | . . . . . . AOE 2 | . . . . 2 . Terrain Rammed . | . . . . . . Walls Destroyed . | . . . . . . Machines Disabled . | . . . . . . Actions | -11 -10 -9 -9 -8 -7 --------- Run | Yrd Mat Mat Min Mat Fac Total 1661 | 61 126 233 366 442 433 Wait 83 | . . . . 40 43 Move 1402 | 46 110 208 358 354 326 Hop . | . . . . . . Pick Up 31 | 9 2 5 3 2 10 Fast Attach 13 | . . 3 . 7 3 Attach 24 | 6 1 2 . 1 14 Detach . | . . . . . . Swap 12 | . . 1 1 4 6 Drop 18 | . . 6 4 4 4 Fire 73 | . 13 8 . 30 22 Melee . | . . . . . . Ram 5 | . . . . . 5 Kick . | . . . . . . Crush . | . . . . . . Escape Stasis . | . . . . . . Rewire . | . . . . . . Trap . | . . . . . . Miscellaneous . | . . . . . . Route ------- -11/Scrapyard -10/Materials -9/Materials -9/Mines -8/Materials -7/Factory History --------- Turn | Location | Event 12 | -11/Scrapyard | Discovered new exit (range 16) 66 | -11/Scrapyard | Entered Materials 215 | -10/Materials | Discovered new exit (range 11) 240 | -10/Materials | Entered another Materials area 240 | -9/Materials | Evolved 2 slots: Propulsion x1, Utility x1 318 | -9/Materials | Build established: Mutant 516 | -9/Materials | Discovered new exit (range 7) 530 | -9/Materials | Entered Mines 692 | -9/Mines | Met a Derelict shopkeep closing up shop 828 | -9/Mines | Discovered new exit (range 15) 834 | -9/Mines | Entered Materials 834 | -8/Materials | Evolved 2 slots: Power x1, Utility x1 1075 | -8/Materials | Met 7R-MNS 1230 | -8/Materials | Garrison activated, responded to threat 1280 | -8/Materials | Discovered new exit (range 17) 1302 | -8/Materials | Identified exit to Factory 1305 | -8/Materials | Lost 7 parts (2p3n1u1w) 1305 | -8/Materials | Entered Factory 1305 | -7/Factory | Evolved 2 slots: Utility x1, Weapon x1 1306 | -7/Factory | Caught up to 7R-MNS 1503 | -7/Factory | Fabricated Cloaking Device (x1) 1707 | -7/Factory | Lost 9 parts (2p3n4w) 1772 | -7/Factory | Core integrity fell below 50% 1820 | -7/Factory | Core integrity fell below 20% 1827 | -7/Factory | Destroyed by Y-54 Guardian with Flak Gun Last Messages --------------- Plasma Cannon destroyed. P-60 Hacker destroyed. Acquired Gravmag System. K-01 Serf collects debris. Dropped Gauss Cannon. Acquired Lgt. Nuclear Core. Gravmag System destroyed. System corrupted: Matter fused (-8). Acquired Imp. Terrain Scan Processor. Aluminum Leg destroyed. G-47 Trooper destroyed. Lgt. Nuclear Core destroyed. Spread Laser destroyed. G-47 Trooper destroyed. Flak Cannon destroyed. Acquired 33 matter. Acquired 84 matter. Acquired 20 matter. Slammed into G-47 Trooper. Destabilizing: Core damaged (-21). Map ----- +----------------------------------------------------+ | ! #???????????????????????????????????????? | | %%] #???????????????????????????????????????? | | /#####/###???????????????????????????????????????? | | %#???# #########?????????????????????????????????? | | #???# # #?????????????????????????????????? | | ##### # T ! #?????????????????????????????????? | | + #?????????????????????????????????? | | ###########+##????????????????????????????? | | ########## #######??????????????????????? | | ???????????????? | | ######### ######???????????????????????? | | #???????## ##????????????????????????????? | | ######????????# #?????????????????????????????? | | +###?????????????# #?????????????????????????????? | | ???????????????# #?????????????????????????????? | | ???????????????# #?????????????????????????????? | | ??????????????# #?????????????????????????????? | | ??????????????# #?????????????????????????????? | | """?????????????# #?????????????????????????????? | | """?????????????# #?????????????????????????????? | | """ ????????????# #?????????????????????????????? | | ????????????# #?????????????????????????????? | | """ ???????????# #?????????????????????????????? | | "??? ???????????# #??###########????????????????? | | "???????????????# #??# #????????????????? | | ????????????????# #??# @g #????????????????? | | #????????????????# #??#%%% """ #????????????????? | | ?????????????????# ####!%""""" #????????????????? | | ?????????????????# Y =""""" #????????????????? | | ?????????????????###### #????????????????? | | ??????????????????????#!! #????????????????? | | ??????????????????????#= #????????????????? | | ??????????????????????###########????????????????? | | ?????????????????????????????????????????????????? | | ?????????????????????????????????????????????????? | | ?????????????????????????????????????????????????? | | ?????????????????????????????????????????????????? | | ?????????????????????????????????????????????????? | | ?????????????????????????????????????????????????? | | ?????????????????????????????????????????????????? | | ?????????????????????????????????????????????????? | | ?????????????????????????????????????????????????? | | ?????????????????????????????????????????????????? | | ?????????????????????????????????????????????????? | | ?????????????????????????????????????????????????? | | ?????????????????????????????????????????????????? | | ?????????????????????????????????????????????????? | | ?????????????????????????????????????????????????? | | ?????????????????????????????????????????????????? | | ?????????????????????????????????????????????????? | +----------------------------------------------------+ Best States ------------- Heat Dissipation 34 Energy Generation 26 Energy Capacity 400 Matter Stores 300 Matter Capacity 300 Sight Range 18 Robot Scan Range 14 Terrain Scan Density 110 Cloak Strength 2 Additional Mass Support 6 Weapon Cycling 15 Evasion (%) 58 Core Analysis 6 Item Schematics ----------------- Imp. Treads | -8/Materials | Scanalyzed Robot Schematics ------------------ None Fabricated ------------ Cloaking Device | x1 | -7/Factory | Preloaded Alien Tech Used ----------------- None Achievements -------------- Just What I Needed Challenges ------------ None Game ------ Seed CarbideHypervelocityArchive Manual? 0 Play Time 00:39:00 Cumulative 6.3 hours Start 2024.05.02 @ 16:57:34 End 2024.05.11 @ 08:40:46 Sessions 9 Manual Loads 0 Difficulty Rogue Special Mode None Game No. 10 Rogue 10 Adventurer 0 Explorer 0 Win Type - Total 0 Types 0/0/0/0/0/0/0/0/0 Lore% 3 Gallery% 12 Achievement% 12 Wizard Run 0 Options --------- Layout 1 ASCII 0 Keyboard 0 Movement Mouse Keybinds 0 Fullscreen 1 Font 24/Smallcaps Map View 50x35 Zoom Use 0% Tactical HUD 0 Map Filters NONE Filters NONE Steam 1 RUN: 2eec86af-b170-41ac-82fc-3ad2053a85a0